bitfinex/quotes_ETHUSD_20241023
["timestamp","ask_amount","ask_price","bid_price","bid_amount"]
[1729690598734,0.07503375,2575.1,2574.8,0.87084809]
[1729690599097,0.07503375,2575.1,2574.8,4.75453809]
[1729690599395,3.88308,2575.3,2574.8,5.6183729]
[1729690599623,0.07488585,2575.0,2574.8,5.6183729]
[1729690599823,3.88308,2575.3,2574.8,5.6183729]
[1729690600001,0.07488585,2574.9,2574.8,5.6183729]
[1729690600204,3.88308,2575.3,2574.8,5.6183729]
[1729690600413,0.07488585,2574.9,2574.8,4.75453809]
[1729690600643,3.88327,2575.2,2574.8,0.87084809]
[1729690600942,3.883,2575.4,2574.8,0.87084809]
[1729690600943,0.07488585,2574.9,2574.8,0.87084809]
[1729690601098,3.8832,2575.2,2574.8,0.87084809]
[1729690601421,0.07486998,2574.9,2574.8,0.87084809]
[1729690601593,3.8832,2575.2,2574.8,0.87084809]
[1729690601936,0.55,2575.3,2574.8,5.24939462]
[1729690602137,0.07486998,2575.1,2574.8,5.24939462]
[1729690602441,3.88319,2575.2,2574.8,5.24939462]
[1729690602741,0.55,2575.3,2574.9,3.88364]
[1729690602945,0.07498094,2575.1,2574.9,3.96130891]
[1729690603237,3.883,2575.4,2575.0,0.53270535]
[1729690603737,3.88297,2575.4,2575.0,0.53270535]
[1729690604795,3.88297,2575.4,2575.0,4.41617535]
[1729690605246,3.88297,2575.4,2575.0,0.53270535]
[1729690605534,3.88297,2575.4,2574.9,3.88362]
[1729690606118,3.88274,2575.5,2574.8,1.06514787]
[1729690606119,3.88355,2575.0,2574.8,1.06514787]
[1729690606448,3.88336,2575.1,2574.8,0.87084809]
[1729690607840,3.8835,2575.0,2574.8,0.05824809]
[1729690608211,3.88335,2575.1,2574.8,0.05824809]
[1729690608409,0.07507078,2574.9,2574.8,0.05824809]
[1729690608750,0.55,2575.4,2574.9,4.67953]
[1729690608914,4.43302,2575.4,2574.9,4.67953]
[1729690609117,4.43302,2575.4,2574.9,4.67946]
[1729690609331,4.43302,2575.4,2575.0,3.88342]
[1729690609539,4.43299,2575.4,2575.0,3.88342]
[1729690609735,4.43299,2575.4,2575.0,4.42593166]
[1729690609948,4.43298,2575.4,2575.0,0.54251166]
[1729690610311,3.88305,2575.3,2575.0,0.54251166]
[1729690610507,0.55,2575.4,2575.0,0.54251166]
[1729690610714,3.88278,2575.5,2575.0,4.42592166]
[1729690611109,3.88291,2575.4,2575.0,4.42592166]
[1729690611313,3.88291,2575.4,2575.0,4.62021657]
[1729690611538,3.88291,2575.4,2575.0,4.42592166]
[1729690612010,3.8828,2575.5,2575.0,4.42592166]
[1729690612213,3.8828,2575.5,2575.1,0.56923654]
[1729690612724,7.76567,2575.5,2575.1,0.56923654]
[1729690613130,3.8828,2575.5,2575.1,4.45247654]
[1729690613322,3.8828,2575.5,2575.2,0.8267]
[1729690613829,3.88256,2575.7,2575.3,3.94127222]
[1729690614447,3.88246,2575.7,2575.4,0.1942727]
[1729690614675,3.88266,2575.6,2575.3,0.05824222]
[1729690614947,3.88266,2575.6,2575.1,0.56923654]
[1729690614948,3.88289,2575.4,2575.1,0.19429584]
[1729690615532,3.88289,2575.4,2575.0,0.8248]
[1729690615746,3.88289,2575.4,2575.1,0.19429365]
[1729690615918,3.88289,2575.4,2575.0,5.25851699]
[1729690616111,3.88289,2575.4,2575.1,0.19429121]
[1729690616313,3.88289,2575.4,2575.0,5.25851699]
[1729690616513,3.88289,2575.4,2575.1,0.19429204]
[1729690616815,3.88289,2575.4,2575.0,5.25851699]
[1729690617044,3.88289,2575.4,2575.1,0.19429273]
[1729690617347,3.88289,2575.4,2575.2,0.19429271]
[1729690617552,3.88206,2576.0,2575.3,0.90779419]
[1729690617761,3.88206,2576.0,2575.7,0.7719]
[1729690617911,0.0231,2576.3,2575.7,0.7719]
[1729690618113,3.88175,2576.2,2575.8,3.88224]
[1729690618358,3.88175,2576.2,2575.8,4.07648164]
[1729690618658,3.88156,2576.3,2576.1,0.7525]
[1729690618858,3.88168,2576.2,2576.1,0.7525]
[1729690619061,3.88168,2576.2,2575.9,0.7525]
[1729690619233,3.88168,2576.2,2575.9,0.9467363]
[1729690619573,3.88168,2576.2,2575.9,0.7525]
[1729690620829,3.88168,2576.2,2575.7,4.12522935]
[1729690620830,3.88192,2576.1,2575.7,0.7515]
[1729690621013,0.0231,2576.6,2575.9,3.88199]
[1729690621214,4.43138,2576.4,2575.9,3.88199]
[1729690621420,3.8816,2576.3,2576.0,0.19423224]
[1729690621642,3.8816,2576.3,2575.9,3.88199]
[1729690621844,3.8816,2576.3,2576.0,0.1942289]
[1729690622126,3.8816,2576.3,2575.9,3.88199]
[1729690622357,8.31289,2576.4,2575.9,3.88205]
[1729690622668,3.88158,2576.3,2575.9,3.88205]
[1729690622848,4.43138,2576.4,2575.9,3.88205]
[1729690623051,4.43138,2576.4,2576.1,0.8132]
[1729690623356,3.88158,2576.3,2576.1,0.8132]
[1729690623566,4.43138,2576.4,2576.1,0.8132]
[1729690623767,0.07007231,2576.3,2576.1,0.8132]
[1729690624439,0.07007231,2576.3,2576.2,3.88168]
[1729690624760,3.88055,2577.0,2576.6,3.88104]
[1729690624925,3.88055,2577.0,2576.7,0.7647]
[1729690625122,3.88036,2577.1,2576.7,0.7647]
[1729690625568,3.88074,2576.9,2576.5,0.8141]
[1729690625743,3.88074,2576.9,2576.5,4.69532]
[1729690625942,7.76117,2577.0,2576.5,4.69532]
[1729690626142,3.0,2577.4,2576.7,0.8141]
[1729690626346,0.0231,2578.3,2577.0,0.8141]
[1729690626583,3.87924,2577.9,2577.5,0.7966]
[1729690626885,3.87934,2577.8,2577.5,0.7966]
[1729690627038,3.87924,2577.9,2577.5,0.7966]
[1729690627372,3.87898,2578.0,2577.5,0.7966]
[1729690627578,3.87892,2578.1,2577.6,0.07758572]
[1729690627765,3.87897,2578.0,2577.6,3.95701572]
[1729690628075,3.87868,2578.2,2577.7,3.87942]
[1729690628261,3.87852,2578.3,2577.8,3.87918]
[1729690628459,3.87837,2578.4,2577.7,3.93759701]
[1729690628775,3.87852,2578.3,2577.7,0.05818701]
[1729690629579,3.87915,2577.9,2577.7,0.05818701]
[1729690630833,7.75786,2578.1,2577.7,0.05818701]
[1729690631037,3.87908,2578.0,2577.7,0.05818701]
[1729690631256,3.87889,2578.1,2577.7,0.05818701]
[1729690631477,4.42861,2578.3,2577.7,0.05818701]
[1729690631640,3.87874,2578.2,2577.8,0.7964]
[1729690631835,4.42861,2578.3,2577.8,0.7964]
[1729690632078,3.87861,2578.3,2577.8,0.7964]
[1729690632276,3.87824,2578.5,2577.9,0.87397486]
[1729690632462,3.87824,2578.5,2577.9,4.67541]
[1729690632782,4.002338,2578.9,2578.3,3.87839]
[1729690633077,0.124628,2578.9,2578.5,0.7566]
[1729690633381,3.87802,2578.7,2578.5,0.7566]
[1729690633884,0.06299488,2578.6,2578.5,0.7566]
[1729690634680,3.87784,2578.8,2578.5,0.7566]
[1729690634883,3.87784,2578.8,2578.6,0.05816045]
[1729690635097,0.06330591,2578.7,2578.6,0.05816045]
[1729690635242,0.124628,2578.9,2578.6,0.05816045]
[1729690635751,0.06330591,2578.8,2578.6,0.05816045]
[1729690636285,0.06330591,2578.8,2578.6,0.5274625]
[1729690636789,3.87792,2578.7,2578.6,0.05816045]
[1729690637148,3.94168978,2578.7,2578.6,0.05816045]
[1729690637459,4.49168978,2578.7,2578.6,0.05816045]
[1729690638478,3.94168978,2578.7,2578.6,0.05816045]
[1729690639544,0.06376978,2578.7,2578.6,0.84516045]
[1729690639749,0.06376978,2578.7,2578.6,1.67040986]
[1729690640043,3.87785,2578.8,2578.6,1.67040986]
[1729690640350,0.06370125,2578.7,2578.6,0.84516045]
[1729690640857,4.002258,2578.9,2578.6,0.84516045]
[1729690641059,0.06376978,2578.7,2578.6,0.84516045]
[1729690641385,0.06381721,2578.7,2578.6,0.84516045]
[1729690641591,4.002258,2578.9,2578.6,0.787]
[1729690641592,7.879978,2578.9,2578.6,0.787]
[1729690641790,0.06381721,2578.7,2578.6,0.787]
[1729690641997,3.87781,2578.8,2578.6,0.787]
[1729690642150,0.124628,2578.9,2578.3,0.8244]
[1729690642151,3.87814,2578.6,2578.3,0.8244]
[1729690642348,3.87814,2578.6,2577.9,3.87909]
[1729690642349,3.87837,2578.4,2577.9,0.8244]
[1729690642962,3.94245774,2578.3,2577.9,0.8244]
[1729690643174,3.87884,2578.1,2577.9,0.8244]
[1729690643349,3.87882,2578.1,2577.9,0.8244]
[1729690643544,0.06378558,2578.0,2577.9,0.8244]
[1729690644265,3.87875,2578.2,2577.9,0.8244]
[1729690644464,0.06375396,2578.0,2577.9,0.8244]
[1729690644663,3.87875,2578.2,2577.9,0.8244]
[1729690644664,3.87894,2578.1,2577.9,0.8244]
[1729690644866,0.06366436,2578.0,2577.9,0.8244]
[1729690645355,3.87892,2578.1,2577.9,0.8244]
[1729690645684,3.87875,2578.2,2577.9,0.8244]
[1729690645685,0.06348516,2578.0,2577.9,0.8244]
[1729690645890,3.94245516,2578.0,2577.7,0.86788701]
[1729690646093,3.87923,2577.9,2577.7,0.05818701]
[1729690646399,4.07919362,2577.8,2577.1,1.00379023]
[1729690646569,3.87987,2577.5,2577.1,0.8097]
[1729690647097,3.87987,2577.5,2577.1,1.29812602]
[1729690647098,0.06350096,2577.4,2577.1,1.29812602]
[1729690647281,0.06350096,2577.4,2577.2,0.19409023]
[1729690647595,3.87984,2577.5,2577.2,0.19413485]
[1729690647757,3.87984,2577.5,2577.3,0.05819324]
[1729690648297,3.87954,2577.7,2577.3,0.05819324]
[1729690648593,3.8796,2577.6,2577.3,0.05819324]
[1729690648775,3.87954,2577.7,2577.3,0.05819324]
[1729690648952,3.87934,2577.8,2577.4,0.19412557]
[1729690649159,3.87934,2577.8,2577.3,4.49380052]
[1729690649160,3.87934,2577.8,2577.5,0.19412557]
[1729690649379,3.87934,2577.8,2577.6,0.95911443]
[1729690649578,3.87934,2577.8,2577.6,0.765]
[1729690650285,3.87926,2577.9,2577.6,0.765]
[1729690650869,3.87929,2577.8,2577.6,0.765]
[1729690651079,3.87942,2577.7,2577.6,0.765]
[1729690651291,3.87942,2577.7,2577.6,0.95911868]
[1729690651465,3.87942,2577.7,2577.6,0.19411868]
[1729690652001,3.87942,2577.7,2577.6,0.19411926]
[1729690652185,3.87987,2577.4,2577.3,0.05819324]
[1729690652388,3.87987,2577.4,2577.3,0.49499031]
[1729690652593,3.87987,2577.4,2577.3,0.25232527]
[1729690653263,0.0628261,2577.4,2577.3,0.49499843]
[1729690653785,3.87958,2577.6,2577.3,1.02986221]
[1729690653987,3.87958,2577.6,2577.4,0.43680519]
[1729690654187,3.87958,2577.6,2577.5,0.43680519]
[1729690654902,3.87937,2577.8,2577.4,0.7912]
[1729690655089,7.75844,2577.9,2577.5,0.43678901]
[1729690655402,7.75844,2577.9,2577.6,0.43678901]
[1729690655403,7.75843,2577.9,2577.6,0.43678901]
[1729690655605,3.87931,2577.8,2577.7,0.43678901]
[1729690656102,3.87921,2577.9,2577.7,0.43678901]
[1729690656259,3.87921,2577.9,2577.8,0.43678901]
[1729690658063,4.45231,2577.9,2577.8,0.43678901]
[1729690658274,4.45231,2577.9,2577.8,0.19412845]
[1729690658474,3.87963,2577.6,2577.4,0.0728757]
[1729690658699,3.87963,2577.6,2577.5,0.24265992]
[1729690658865,3.87939,2577.8,2577.5,0.43679067]
[1729690658866,3.87951,2577.7,2577.5,0.43679067]
[1729690659079,3.87951,2577.7,2577.3,0.13106894]
[1729690659080,3.87951,2577.7,2577.6,0.43679067]
[1729690660099,3.87951,2577.7,2577.6,0.19413075]
[1729690660675,4.42951,2577.7,2577.1,0.05819672]
[1729690660870,3.88018,2577.2,2577.0,0.0728757]
[1729690661071,3.88018,2577.2,2577.1,0.43684432]
[1729690661387,3.88003,2577.3,2577.1,0.43684432]
[1729690661587,7.76016,2577.3,2577.2,0.43684432]
[1729690661972,3.88029,2577.2,2577.0,0.05819911]
[1729690662216,3.88029,2577.2,2577.1,0.43685079]
[1729690662384,3.88029,2577.2,2577.1,0.43685053]
[1729690662804,3.88005,2577.3,2577.1,0.43685053]
[1729690662987,7.76018,2577.3,2577.2,0.43685053]
[1729690663575,3.88005,2577.3,2577.2,0.43685053]
[1729690664491,3.88005,2577.3,2577.2,0.49504652]
[1729690665114,3.88005,2577.3,2577.2,0.49504951]
[1729690665274,3.88005,2577.3,2577.2,0.2523549]
[1729690667975,3.88005,2577.3,2577.2,0.49504206]
[1729690668178,3.9425491,2577.3,2577.2,0.49504206]
[1729690668489,3.9425491,2577.3,2577.2,0.2523549]
[1729690669079,3.9425491,2577.3,2577.2,0.05819911]
[1729690669291,0.0624991,2577.3,2577.2,0.25234926]
[1729690669508,0.0624991,2577.3,2577.2,0.49503363]
[1729690669678,0.55,2577.7,2577.2,0.49503363]
[1729690669679,3.87989,2577.4,2577.2,0.49503363]
[1729690669882,7.75986,2577.4,2577.3,0.19415015]
[1729690670928,11.86215362,2577.4,2577.2,0.05819911]
[1729690671079,4.43002,2577.3,2577.2,0.05819911]
[1729690671479,3.88063,2576.9,2576.8,0.2427101]
[1729690671921,0.0231,2577.4,2576.8,0.43688439]
[1729690672091,0.5731,2577.4,2576.8,0.43688439]
[1729690672289,3.88041,2577.1,2576.9,0.43688439]
[1729690672498,4.42998,2577.4,2577.0,0.8099]
[1729690672693,3.88014,2577.3,2577.1,0.43685928]
[1729690672913,3.88014,2577.3,2577.0,0.8099]
[1729690673230,3.88011,2577.3,2577.1,0.49504268]
[1729690673523,3.88011,2577.3,2577.2,0.43684315]
[1729690674011,3.88011,2577.3,2577.2,0.19415251]
[1729690674222,3.88011,2577.3,2577.2,0.43684313]
[1729690674383,3.88011,2577.3,2577.2,0.19415251]
[1729690674726,3.88011,2577.3,2577.2,0.43684292]
[1729690674912,3.88011,2577.3,2577.2,0.43684218]
[1729690675114,3.88011,2577.3,2577.2,0.43684076]
[1729690675610,3.88011,2577.3,2577.2,0.43684598]
[1729690675926,3.88011,2577.3,2577.2,0.19415251]
[1729690676086,3.88011,2577.3,2577.2,0.43684437]
[1729690676424,3.88011,2577.3,2577.2,0.19415251]
[1729690676720,3.88011,2577.3,2577.2,0.25235204]
[1729690677778,4.43011,2577.3,2576.7,0.83447189]
[1729690677909,3.88066,2576.9,2576.8,0.43689225]
[1729690678421,3.88066,2576.9,2576.8,0.25237997]
[1729690678625,4.43066,2576.9,2576.5,0.24272687]
[1729690678812,3.0,2576.5,2576.0,0.31573774]
[1729690679013,3.88156,2576.3,2576.1,0.19422242]
[1729690679212,3.88156,2576.3,2575.4,3.88286]
[1729690679213,7.41087362,2576.2,2575.9,0.19424737]
[1729690679385,7.41087362,2576.2,2575.6,0.99358778]
[1729690679386,3.88228,2575.8,2575.6,0.99358778]
[1729690679588,3.88185,2576.1,2575.6,0.7508]
[1729690679589,3.88243,2575.7,2575.6,0.7508]
[1729690679788,3.88243,2575.7,2575.6,0.94506256]
[1729690680244,3.88243,2575.7,2575.5,0.05822859]
[1729690680245,3.88259,2575.6,2575.5,0.05822859]
[1729690680411,3.88243,2575.7,2575.5,0.05822859]
[1729690680612,3.8824,2575.8,2575.6,0.19426687]
[1729690680933,3.8824,2575.8,2575.5,0.05822859]
[1729690681139,3.88244,2575.7,2575.6,0.19426476]
[1729690681295,4.43259,2575.6,2575.5,0.05822859]
[1729690682425,7.96178362,2575.6,2575.5,0.05822859]
[1729690682620,4.43259,2575.6,2575.5,0.05822859]
[1729690683310,4.49333142,2575.6,2575.5,0.05822859]
[1729690683630,0.06074142,2575.6,2575.5,0.05822859]
[1729690684037,7.76469,2575.8,2575.5,0.05822859]
[1729690684218,0.06055656,2575.6,2575.5,0.05822859]
[1729690684425,3.88229,2575.8,2575.5,0.05822859]
[1729690684948,0.06056713,2575.7,2575.3,3.88292]
[1729690685148,3.88237,2575.8,2575.4,0.776611]
[1729690685358,0.06056713,2575.6,2575.4,0.776611]
[1729690685647,3.90517,2576.0,2575.4,0.85426092]
[1729690685846,0.06056713,2575.5,2575.4,1.595611]
[1729690686152,3.88198,2576.0,2575.5,3.88271]
[1729690686320,0.0231,2576.4,2575.8,3.88221]
[1729690686519,3.8817,2576.2,2575.9,0.819]
[1729690686911,3.88147,2576.4,2575.9,0.819]
[1729690687350,3.88147,2576.4,2575.9,4.70112]
[1729690687520,0.55,2576.3,2575.9,4.70112]
[1729690687720,0.55,2576.3,2575.9,5.61769164]
[1729690688049,0.01,2576.9,2575.9,5.61769164]
[1729690688050,3.90402,2576.8,2576.3,3.88145]
[1729690688249,3.52919362,2576.8,2575.9,4.99281864]
[1729690688557,3.88115,2576.6,2576.1,4.63622]
[1729690688861,3.88115,2576.6,2576.2,0.05822156]
[1729690689008,3.88093,2576.7,2576.2,3.93977156]
[1729690689911,7.76196,2576.7,2576.2,3.93977156]
[1729690690408,7.76197,2576.7,2576.2,3.93977156]
[1729690690608,3.88093,2576.7,2576.2,3.93981156]
[1729690690835,3.88079,2576.8,2576.3,3.88145]
[1729690691049,3.88079,2576.8,2576.4,4.66349616]
[1729690691258,0.55,2576.8,2576.4,8.54476616]
[1729690691457,6.88069,2576.9,2576.4,4.66339616]
[1729690691627,3.88059,2577.0,2576.5,4.68334]
[1729690691810,3.55229362,2577.2,2576.6,3.88097]
[1729690691811,3.88034,2577.1,2576.6,3.88097]
[1729690692016,3.88034,2577.1,2576.7,3.88091]
[1729690692557,3.88004,2577.3,2576.7,3.88091]
[1729690692712,7.76018,2577.3,2576.8,3.88071]
[1729690692912,3.88004,2577.3,2576.7,4.349221]
[1729690693117,3.52919362,2576.8,2576.3,0.8303]
[1729690693317,3.88092,2576.8,2576.3,0.8303]
[1729690693617,3.88094,2576.7,2576.3,0.8303]
[1729690693844,3.88109,2576.6,2576.3,0.8303]
[1729690694159,3.88094,2576.7,2576.3,0.8303]
[1729690695021,3.88117,2576.6,2576.3,0.8303]
[1729690695756,3.52919362,2576.6,2576.2,0.05822156]
[1729690695961,3.88153,2576.3,2576.2,0.05822156]
[1729690696330,3.88147,2576.4,2576.2,0.05822156]
[1729690696568,4.43127,2576.5,2576.2,0.05822156]
[1729690696770,3.88139,2576.4,2576.2,0.05822156]
[1729690697263,4.43124,2576.5,2576.2,0.05822156]
[1729690697448,3.88141,2576.4,2576.2,0.05822156]
[1729690698146,0.05916226,2576.3,2576.2,0.05822156]
[1729690698558,3.52919362,2576.6,2576.3,0.7757]
[1729690698559,3.88108,2576.6,2576.3,0.7757]
[1729690699334,3.88102,2576.7,2576.3,0.7757]
[1729690699524,3.88101,2576.7,2576.3,0.7757]
[1729690699727,3.88124,2576.5,2576.3,0.7757]
[1729690700660,3.8811,2576.6,2576.3,0.7757]
[1729690700973,3.8811,2576.6,2576.3,0.83391972]
[1729690702201,7.76226,2576.6,2576.3,0.83391972]
[1729690702494,3.8811,2576.6,2576.3,0.83391972]
[1729690703273,7.76226,2576.6,2576.3,0.83391972]
[1729690703450,3.8811,2576.6,2576.3,0.83391972]
[1729690703677,7.76228,2576.6,2576.3,0.83391972]
[1729690703831,3.8811,2576.6,2576.3,0.83391972]
[1729690704240,7.7623,2576.6,2576.3,0.83391972]
[1729690704436,3.88125,2576.5,2576.3,0.83391972]
[1729690704633,3.8811,2576.6,2576.3,0.83391972]
[1729690705398,7.76231,2576.6,2576.3,0.83391972]
[1729690705540,3.88131,2576.5,2576.3,0.83391972]
[1729690705880,3.88131,2576.5,2576.3,0.05821972]
[1729690706034,3.88138,2576.4,2576.3,0.05821972]
[1729690706240,3.88168,2576.2,2576.1,0.8043]
[1729690706438,3.88185,2576.1,2575.9,0.8043]
[1729690706652,0.55,2576.4,2575.8,3.88227]
[1729690706851,3.8817,2576.2,2575.8,4.07650809]
[1729690707069,3.8817,2576.2,2575.8,5.00838195]
[1729690707681,3.88183,2576.1,2575.8,0.93187052]
[1729690707888,3.88183,2576.1,2575.7,0.8043]
[1729690708188,0.05914641,2576.0,2575.8,0.19424485]
[1729690708681,0.05914641,2576.0,2575.8,0.05822254]
[1729690709844,3.94120641,2576.0,2575.8,0.05822254]
[1729690710047,7.41132362,2575.9,2575.8,0.05822254]
[1729690710310,7.41132362,2575.9,2574.6,4.18205781]
[1729690710311,4.49122888,2575.9,2575.4,3.88288]
[1729690710461,3.88244,2575.7,2575.3,0.8165]
[1729690710648,3.88261,2575.6,2575.3,1.01078423]
[1729690710843,3.94143958,2575.6,2575.3,0.8165]
[1729690711043,0.05882958,2575.6,2575.3,0.8165]
[1729690711295,3.8824,2575.8,2575.4,4.07716159]
[1729690711611,3.88235,2575.8,2575.5,0.19426773]
[1729690711890,3.882,2576.0,2575.5,0.19426773]
[1729690711891,0.05868698,2575.7,2575.5,3.94096609]
[1729690712249,7.7641,2576.0,2575.5,3.94096609]
[1729690712556,7.7641,2576.0,2575.5,3.94087609]
[1729690712557,7.76409,2576.0,2575.5,3.94087609]
[1729690712789,0.05868698,2575.9,2575.5,3.94087609]
[1729690713093,0.05868698,2575.9,2575.6,0.19426001]
[1729690713249,0.05868698,2575.9,2575.5,4.8519016]
[1729690713442,0.05868698,2575.9,2575.5,0.9692616]
[1729690713648,0.05868698,2575.9,2575.6,4.07684324]
[1729690713848,0.05868698,2575.9,2575.6,3.88258]
[1729690714050,0.05868698,2575.9,2575.5,3.94096609]
[1729690714346,0.05868698,2575.9,2575.6,0.1942581]
[1729690714541,0.05868698,2575.9,2575.5,3.94096609]
[1729690714784,3.94083698,2575.9,2575.6,0.19425857]
[1729690714985,3.94083698,2575.9,2575.5,4.87627762]
[1729690715290,3.94083698,2575.9,2575.6,0.1942598]
[1729690715487,3.94083698,2575.9,2575.5,0.93531153]
[1729690715784,3.94083698,2575.9,2575.6,0.19425944]
[1729690716096,3.94083698,2575.9,2575.5,4.81802153]
[1729690716294,3.94083698,2575.9,2575.6,0.19425812]
[1729690716447,3.94083698,2575.9,2575.5,4.81802153]
[1729690716646,3.94083698,2575.9,2575.6,0.19426997]
[1729690716847,3.94083698,2575.9,2575.5,4.81802153]
[1729690717089,3.88229,2575.8,2575.6,0.19425971]
[1729690717255,3.88229,2575.8,2575.3,5.169489]
[1729690717256,4.07919362,2575.8,2575.3,1.0593409]
[1729690717461,3.88286,2575.5,2575.2,0.05824194]
[1729690717860,0.05852324,2575.4,2575.2,0.05824194]
[1729690718061,3.88261,2575.6,2575.2,0.05824194]
[1729690718264,0.05852324,2575.3,2575.2,0.05824194]
[1729690718464,3.88261,2575.6,2575.2,0.25252614]
[1729690718686,0.05852324,2575.3,2575.2,0.25253263]
[1729690718887,3.88261,2575.6,2575.2,0.25253263]
[1729690719090,0.05852324,2575.3,2575.2,0.05824194]
[1729690719297,3.88261,2575.6,2575.2,0.25252608]
[1729690719505,0.05852324,2575.3,2575.2,0.25252608]
[1729690719649,3.88304,2575.3,2575.2,0.19428414]
[1729690719849,3.88326,2575.2,2574.9,0.19428414]
[1729690720051,3.88326,2575.2,2574.7,4.67412]
[1729690720052,4.49158324,2575.3,2574.8,3.88369]
[1729690720259,0.05837533,2575.1,2574.8,3.88369]
[1729690720490,3.88306,2575.3,2574.9,0.19430847]
[1729690720702,0.05837533,2575.0,2574.9,0.25255443]
[1729690720988,0.05837533,2575.0,2574.9,4.13614443]
[1729690721310,3.88315,2575.3,2574.9,0.25255443]
[1729690721655,0.05837533,2575.2,2574.9,0.25255443]
[1729690722280,3.88342,2575.1,2574.9,0.05824596]
[1729690722790,3.94162753,2575.0,2574.9,0.05824596]
[1729690723296,0.05813753,2575.0,2574.9,0.05824596]
[1729690726195,0.05806356,2575.0,2574.9,0.05824596]
[1729690726381,3.88319,2575.2,2574.9,0.05824596]
[1729690726587,0.05806356,2575.0,2574.9,0.05824596]
[1729690726783,3.88319,2575.2,2574.9,0.05824596]
[1729690726987,0.05806356,2575.0,2574.9,0.05824596]
[1729690727299,3.88319,2575.2,2574.9,0.05824596]
[1729690727482,0.05806356,2575.0,2574.9,0.05824596]
[1729690727657,3.88319,2575.2,2574.9,0.05824596]
[1729690727874,0.05806356,2575.0,2574.9,0.05824596]
[1729690728113,3.88319,2575.2,2574.9,0.53365458]
[1729690728321,0.05806356,2575.0,2574.9,0.05824596]
[1729690728469,3.88319,2575.2,2574.9,0.05824596]
[1729690728671,0.05806356,2575.0,2574.9,0.05824596]
[1729690728877,3.88319,2575.2,2574.9,0.05824596]
[1729690729215,3.90681,2574.9,2574.5,0.7903]
[1729690729363,3.90681,2574.9,2574.5,4.67445]
[1729690729558,0.05769362,2574.8,2574.5,4.67445]
[1729690729800,0.05769362,2574.8,2574.5,5.530324]
[1729690730102,3.94152362,2574.8,2574.5,1.646174]
[1729690730704,0.05769362,2574.8,2574.5,1.646174]
[1729690730994,3.94150362,2574.8,2574.5,0.7903]
[1729690731581,0.05769362,2574.8,2574.5,4.67453]
[1729690732425,0.05769362,2574.8,2574.5,0.7903]
[1729690732578,3.9064,2575.2,2574.7,3.88394]
[1729690732904,0.05749804,2575.1,2574.7,3.88394]
[1729690733109,0.05749804,2575.1,2574.7,4.75919788]
[1729690733605,0.05749804,2575.1,2574.8,3.88372]
[1729690733808,0.05749804,2575.1,2574.9,0.05824896]
[1729690734007,0.05749804,2575.1,2574.7,0.87525788]
[1729690734230,3.94091804,2575.1,2574.7,0.87525788]
[1729690734440,3.94091804,2575.1,2574.6,4.07833231]
[1729690734638,3.88355,2575.0,2574.5,4.86885231]
[1729690734828,3.94109034,2575.0,2574.5,4.86885231]
[1729690735135,0.05754034,2575.0,2574.7,3.88386]
[1729690735306,0.05754034,2575.0,2574.8,3.88379]
[1729690735505,0.55,2575.2,2574.8,3.88379]
[1729690735713,0.55,2575.2,2574.9,0.05824928]
[1729690735931,0.0231,2575.4,2575.0,0.7814]
[1729690736111,3.90599,2575.4,2575.0,0.7814]
[1729690736627,3.90599,2575.4,2575.0,4.66488]
[1729690737143,0.0231,2575.6,2575.2,3.88318]
[1729690737307,0.60776927,2575.8,2575.5,3.88273]
[1729690737507,0.60776927,2575.8,2575.0,5.52554493]
[1729690737508,3.8823,2575.8,2575.3,3.88296]
[1729690738142,3.8823,2575.8,2575.4,3.88287]
[1729690739038,3.88212,2576.0,2575.6,3.88257]
[1729690739237,3.0,2576.0,2575.6,3.88257]
[1729690739400,0.0231,2576.1,2575.7,3.88236]
[1729690739595,0.0231,2576.1,2575.8,3.88228]
[1729690739913,3.88168,2576.2,2575.8,3.88228]
[1729690740462,3.88187,2576.1,2575.6,4.73956]
[1729690740608,3.88187,2576.1,2575.6,4.73949]
[1729690740944,3.88187,2576.1,2575.6,3.88252]
[1729690741091,3.882,2576.0,2575.6,3.88252]
[1729690741296,3.882,2576.0,2575.7,0.05823394]
[1729690741537,3.88223,2575.9,2575.7,0.05823394]
[1729690741714,3.90533,2575.9,2575.7,0.05823394]
[1729690741895,3.88228,2575.8,2575.7,0.05823394]
[1729690742090,4.43228,2575.8,2575.7,0.05823394]
[1729690742312,4.43228,2575.8,2575.0,4.64109]
[1729690742313,3.88254,2575.7,2575.0,4.64109]
[1729690742593,3.88275,2575.5,2575.1,0.19428959]
[1729690742838,3.88275,2575.5,2575.0,5.13538671]
[1729690743004,4.43268,2575.6,2575.1,0.19429582]
[1729690743207,3.55229362,2575.9,2575.2,4.07746057]
[1729690743208,0.05616805,2575.4,2575.2,4.07746057]
[1729690743408,3.88207,2576.0,2575.3,0.96279057]
[1729690743640,3.88215,2575.9,2575.5,3.88265]
[1729690744145,3.88201,2576.0,2575.5,7.76528]
[1729690744346,0.0231,2576.1,2575.6,0.7949]
[1729690744499,3.88195,2576.1,2575.6,4.8717328]
[1729690744821,3.88195,2576.1,2575.6,4.67747]
[1729690745401,3.88195,2576.1,2575.7,3.94066362]
[1729690745602,3.88138,2576.4,2575.9,3.882]
[1729690745951,3.88154,2576.3,2576.0,0.764]
[1729690746309,7.76316,2576.3,2576.0,0.764]
[1729690746921,3.88154,2576.3,2575.8,3.88226]
[1729690747233,3.0,2576.4,2575.9,3.88212]
[1729690747438,3.0,2576.4,2575.9,0.19423306]
[1729690747765,3.88136,2576.5,2576.0,3.88196]
[1729690747912,7.76274,2576.5,2576.0,3.88196]
[1729690748112,3.0231,2576.7,2576.0,3.88196]
[1729690748113,3.8811,2576.6,2576.0,4.33467921]
[1729690748429,3.88104,2576.7,2576.2,3.88168]
[1729690748743,3.88063,2576.9,2576.5,3.88115]
[1729690749111,3.88033,2577.1,2576.4,1.02369837]
[1729690749316,3.88069,2576.9,2576.4,4.71079]
[1729690749523,3.88069,2576.9,2576.5,0.87864172]
[1729690749835,3.88069,2576.9,2576.5,4.75986172]
[1729690750036,3.88115,2576.6,2576.2,0.7754]